[Event "Early-Titled-Tuesday-Blitz-October-24-2023"]
[Site "Chess.com"]
[Date "2023.10.24"]
[Round "5"]
[White "krzyzan94"]
[Black "CristianS27"]
[Result "0-1"]
[WhiteElo "2762"]
[BlackElo "2548"]
[TimeControl "180+1"]
[EndTime "8:54:36 PDT"]
[Termination "CristianS27 won by checkmate"]

1. e4 {[%clk 0:03:00.9]} 1... e5 {[%clk 0:02:59]} 2. Nf3 {[%clk 0:03:00.5]} 2...
Nc6 {[%clk 0:02:58.5]} 3. Bb5 {[%clk 0:02:59.5]} 3... a6 {[%clk 0:02:59.1]} 4.
Ba4 {[%clk 0:02:59.1]} 4... Nf6 {[%clk 0:02:59.6]} 5. Nc3 {[%clk 0:02:57.3]}
5... b5 {[%clk 0:02:57.6]} 6. Bb3 {[%clk 0:02:57.1]} 6... Bc5 {[%clk 0:02:56.9]}
7. d3 {[%clk 0:02:42]} 7... h6 {[%clk 0:02:55.9]} 8. a4 {[%clk 0:02:39.4]} 8...
Rb8 {[%clk 0:02:55.4]} 9. axb5 {[%clk 0:02:37.6]} 9... axb5 {[%clk 0:02:56.3]}
10. Nd5 {[%clk 0:02:31.8]} 10... O-O {[%clk 0:02:38.2]} 11. c3 {[%clk
0:02:17.7]} 11... d6 {[%clk 0:02:22.7]} 12. h4 {[%clk 0:01:56.7]} 12... Bg4
{[%clk 0:02:16.4]} 13. Ne3 {[%clk 0:01:42.5]} 13... Qd7 {[%clk 0:01:59.7]} 14.
Ra6 {[%clk 0:01:37.3]} 14... Ra8 {[%clk 0:01:48.8]} 15. Rxa8 {[%clk 0:01:36.6]}
15... Rxa8 {[%clk 0:01:49.7]} 16. Qe2 {[%clk 0:01:11.1]} 16... Ra1 {[%clk
0:01:47.5]} 17. O-O {[%clk 0:01:10.7]} 17... Nh5 {[%clk 0:01:40.4]} 18. Nxg4
{[%clk 0:00:37.8]} 18... Qxg4 {[%clk 0:01:22.6]} 19. d4 {[%clk 0:00:37.8]} 19...
exd4 {[%clk 0:01:08.8]} 20. cxd4 {[%clk 0:00:38.2]} 20... Ng3 {[%clk 0:00:53.6]}
21. Bxf7+ {[%clk 0:00:26.7]} 21... Kh8 {[%clk 0:00:49.1]} 22. Qc2 {[%clk
0:00:09.2]} 22... Nxd4 {[%clk 0:00:27.8]} 23. Nxd4 {[%clk 0:00:07.8]} 23... Bxd4
{[%clk 0:00:18.3]} 24. Re1 {[%clk 0:00:07.6]} 24... Qxh4 {[%clk 0:00:11.9]} 25.
Be3 {[%clk 0:00:01.7]} 25... Qh1# {[%clk 0:00:11.5]} 0-1

[Event "Early-Titled-Tuesday-Blitz-October-24-2023"]
[Site "Chess.com"]
[Date "2023.10.24"]
[Round "5"]
[White "Lennis93"]
[Black "ketster"]
[Result "1-0"]
[WhiteElo "2736"]
[BlackElo "2501"]
[TimeControl "180+1"]
[EndTime "8:54:36 PDT"]
[Termination "Lennis93 won by checkmate"]

1. c4 {[%clk 0:03:00.9]} 1... e5 {[%clk 0:02:58.6]} 2. g3 {[%clk 0:02:59.9]}
2... d5 {[%clk 0:02:52.1]} 3. cxd5 {[%clk 0:02:59.6]} 3... Qxd5 {[%clk
0:02:52.8]} 4. Nf3 {[%clk 0:03:00]} 4... Nc6 {[%clk 0:02:48.7]} 5. Nc3 {[%clk
0:03:00.3]} 5... Qd8 {[%clk 0:02:44.9]} 6. Bg2 {[%clk 0:02:57]} 6... Nf6 {[%clk
0:02:44.9]} 7. O-O {[%clk 0:02:56.8]} 7... Bc5 {[%clk 0:02:43.5]} 8. d3 {[%clk
0:02:49.3]} 8... O-O {[%clk 0:02:43.6]} 9. Bg5 {[%clk 0:02:48.9]} 9... Be7
{[%clk 0:02:38.3]} 10. Rc1 {[%clk 0:02:48.9]} 10... Be6 {[%clk 0:02:35.6]} 11.
a3 {[%clk 0:02:48.7]} 11... Nd5 {[%clk 0:02:27.8]} 12. Bxe7 {[%clk 0:02:43.7]}
12... Ndxe7 {[%clk 0:02:19.6]} 13. Na4 {[%clk 0:02:40.7]} 13... Bd5 {[%clk
0:02:06.7]} 14. b4 {[%clk 0:02:38]} 14... f6 {[%clk 0:02:05]} 15. Nc5 {[%clk
0:02:23.6]} 15... b6 {[%clk 0:02:02.9]} 16. Na6 {[%clk 0:02:17.8]} 16... Rc8
{[%clk 0:01:56.6]} 17. b5 {[%clk 0:02:15.5]} 17... Na5 {[%clk 0:01:47.8]} 18. e4
{[%clk 0:02:10.4]} 18... Bb3 {[%clk 0:01:40.7]} 19. Qe2 {[%clk 0:02:08.1]} 19...
c6 {[%clk 0:01:38.5]} 20. bxc6 {[%clk 0:02:03.3]} 20... Rxc6 {[%clk 0:01:32.7]}
21. Nb4 {[%clk 0:02:00]} 21... Rd6 {[%clk 0:01:30.1]} 22. Nd2 {[%clk 0:01:47.9]}
22... Be6 {[%clk 0:01:24.9]} 23. f4 {[%clk 0:01:47.8]} 23... Nb7 {[%clk
0:01:22.5]} 24. fxe5 {[%clk 0:01:47.9]} 24... fxe5 {[%clk 0:01:22]} 25. Nc4
{[%clk 0:01:46.8]} 25... Bxc4 {[%clk 0:01:17.3]} 26. Rxf8+ {[%clk 0:01:45.6]}
26... Kxf8 {[%clk 0:01:13.6]} 27. dxc4 {[%clk 0:01:45.6]} 27... Nc5 {[%clk
0:01:07.5]} 28. Nd5 {[%clk 0:01:44.8]} 28... Nc6 {[%clk 0:01:06.2]} 29. Rd1
{[%clk 0:01:43.5]} 29... Nd4 {[%clk 0:01:05.1]} 30. Qh5 {[%clk 0:01:43.5]} 30...
Kg8 {[%clk 0:00:58.7]} 31. Qxe5 {[%clk 0:01:43.2]} 31... Nc6 {[%clk 0:00:50.6]}
32. Ne7+ {[%clk 0:01:30.6]} 32... Nxe7 {[%clk 0:00:32.2]} 33. Qxd6 {[%clk
0:01:30.5]} 33... Qf8 {[%clk 0:00:28.2]} 34. Rf1 {[%clk 0:01:25.5]} 34... Qe8
{[%clk 0:00:25.6]} 35. e5 {[%clk 0:01:25.9]} 35... h6 {[%clk 0:00:19.7]} 36.
Bd5+ {[%clk 0:01:25.5]} 36... Kh7 {[%clk 0:00:14.2]} 37. Bf7 {[%clk 0:01:25.5]}
37... Qa8 {[%clk 0:00:07]} 38. Qxe7 {[%clk 0:01:24.7]} 38... Qe4 {[%clk
0:00:06.6]} 39. Bd5 {[%clk 0:01:19.1]} 39... Qe3+ {[%clk 0:00:06.8]} 40. Kg2
{[%clk 0:01:16.2]} 40... Nd3 {[%clk 0:00:07.5]} 41. Qf7 {[%clk 0:01:15.1]} 41...
Ne1+ {[%clk 0:00:05.4]} 42. Rxe1 {[%clk 0:01:02.2]} 42... Qxe1 {[%clk
0:00:06.3]} 43. Qf5+ {[%clk 0:01:02.2]} 43... Kh8 {[%clk 0:00:05.2]} 44. Qc8+
{[%clk 0:01:01.8]} 44... Kh7 {[%clk 0:00:05.7]} 45. Bg8+ {[%clk 0:01:01.3]}
45... Kg6 {[%clk 0:00:04.9]} 46. Qg4# {[%clk 0:01:00.4]} 1-0

[Event "Early-Titled-Tuesday-Blitz-October-24-2023"]
[Site "Chess.com"]
[Date "2023.10.24"]
[Round "5"]
[White "Kostya0705"]
[Black "Mystery2007"]
[Result "1-0"]
[WhiteElo "2629"]
[BlackElo "2463"]
[TimeControl "180+1"]
[EndTime "8:54:37 PDT"]
[Termination "Kostya0705 won on time"]

1. e4 {[%clk 0:02:49.1]} 1... a6 {[%clk 0:03:00.9]} 2. d4 {[%clk 0:02:46.2]}
2... e6 {[%clk 0:03:01.5]} 3. Nc3 {[%clk 0:02:44.5]} 3... b5 {[%clk 0:03:01]} 4.
f3 {[%clk 0:02:40.3]} 4... Bb7 {[%clk 0:03:00.3]} 5. Bd3 {[%clk 0:02:39.1]} 5...
c5 {[%clk 0:03:00.3]} 6. dxc5 {[%clk 0:02:38.6]} 6... Bxc5 {[%clk 0:02:58.9]} 7.
Nge2 {[%clk 0:02:39.2]} 7... Ne7 {[%clk 0:02:57.7]} 8. a3 {[%clk 0:02:38.4]}
8... O-O {[%clk 0:02:58.3]} 9. Bf4 {[%clk 0:02:37.7]} 9... d5 {[%clk 0:02:58.2]}
10. exd5 {[%clk 0:02:36.3]} 10... Nxd5 {[%clk 0:02:59.1]} 11. Nxd5 {[%clk
0:02:35.9]} 11... Bxd5 {[%clk 0:02:42.9]} 12. Qd2 {[%clk 0:02:35.6]} 12... Nd7
{[%clk 0:02:39.8]} 13. O-O-O {[%clk 0:02:34.6]} 13... Qb6 {[%clk 0:02:20.6]} 14.
Nc3 {[%clk 0:02:31.7]} 14... Nf6 {[%clk 0:02:17.2]} 15. Kb1 {[%clk 0:02:27.7]}
15... b4 {[%clk 0:02:11.9]} 16. Na4 {[%clk 0:02:25.1]} 16... Qc6 {[%clk
0:01:59.8]} 17. Nxc5 {[%clk 0:02:21.8]} 17... Qxc5 {[%clk 0:02:00.2]} 18. Qxb4
{[%clk 0:02:19.5]} 18... Qc6 {[%clk 0:01:59.1]} 19. h4 {[%clk 0:02:11.6]} 19...
Ra7 {[%clk 0:01:44.3]} 20. c4 {[%clk 0:02:10.6]} 20... Rb7 {[%clk 0:01:32.5]}
21. Qc3 {[%clk 0:01:59]} 21... Rc8 {[%clk 0:01:24.8]} 22. Ka1 {[%clk 0:01:56.5]}
22... Qa4 {[%clk 0:01:07.2]} 23. Qd4 {[%clk 0:01:29.4]} 23... h6 {[%clk
0:00:57.5]} 24. Be5 {[%clk 0:01:27.8]} 24... Rb3 {[%clk 0:00:26.2]} 25. Bc2
{[%clk 0:01:18.2]} 25... Rxa3+ {[%clk 0:00:20.8]} 26. bxa3 {[%clk 0:01:17.4]}
26... Qxa3+ {[%clk 0:00:21.7]} 27. Kb1 {[%clk 0:01:17.4]} 27... Rxc4 {[%clk
0:00:18.7]} 28. Qxc4 {[%clk 0:01:17]} 28... Bxc4 {[%clk 0:00:11]} 29. Rd8+
{[%clk 0:01:17.9]} 29... Qf8 {[%clk 0:00:08]} 30. Rxf8+ {[%clk 0:01:17.5]} 30...
Kxf8 {[%clk 0:00:08.9]} 31. Bxf6 {[%clk 0:01:17.6]} 31... gxf6 {[%clk
0:00:09.4]} 32. Rd1 {[%clk 0:01:18.2]} 32... Ke7 {[%clk 0:00:09.2]} 33. Bd3
{[%clk 0:01:17.8]} 33... Bb3 {[%clk 0:00:08.2]} 34. Rc1 {[%clk 0:01:18.4]} 34...
a5 {[%clk 0:00:07.4]} 35. Rc7+ {[%clk 0:01:18.1]} 35... Kd6 {[%clk 0:00:07.9]}
36. Rxf7 {[%clk 0:01:17.8]} 36... Ke5 {[%clk 0:00:08.3]} 37. Ra7 {[%clk
0:01:16.1]} 37... a4 {[%clk 0:00:08.2]} 38. Bb5 {[%clk 0:01:16.7]} 38... Kf4
{[%clk 0:00:07.8]} 39. Bxa4 {[%clk 0:01:16.8]} 39... Bd5 {[%clk 0:00:07.1]} 40.
Rg7 {[%clk 0:01:14.2]} 40... Ke3 {[%clk 0:00:04.9]} 41. Rg6 {[%clk 0:01:14.3]}
41... Kf2 {[%clk 0:00:04.9]} 42. Rxf6 {[%clk 0:01:14.1]} 42... Kxg2 {[%clk
0:00:04.6]} 43. Rxh6 {[%clk 0:01:14.6]} 43... Kxf3 {[%clk 0:00:04]} 44. Bc2
{[%clk 0:01:13.7]} 44... Kg4 {[%clk 0:00:03.8]} 45. h5 {[%clk 0:01:12.9]} 45...
Kg5 {[%clk 0:00:03.3]} 46. Rh8 {[%clk 0:01:12.8]} 46... e5 {[%clk 0:00:03.1]}
47. Re8 {[%clk 0:01:07.1]} 47... e4 {[%clk 0:00:01.8]} 48. Re5+ {[%clk
0:01:06.6]} 1-0

[Event "Early-Titled-Tuesday-Blitz-October-24-2023"]
[Site "Chess.com"]
[Date "2023.10.24"]
[Round "5"]
[White "lamomiajunior"]
[Black "jcibarra"]
[Result "0-1"]
[WhiteElo "2660"]
[BlackElo "2930"]
[TimeControl "180+1"]
[EndTime "8:54:38 PDT"]
[Termination "jcibarra won by checkmate"]

1. d4 {[%clk 0:03:00.9]} 1... Nf6 {[%clk 0:02:59.8]} 2. c4 {[%clk 0:03:00.8]}
2... d6 {[%clk 0:03:00.3]} 3. Nc3 {[%clk 0:02:59.7]} 3... e5 {[%clk 0:03:00.6]}
4. Nf3 {[%clk 0:02:59.1]} 4... e4 {[%clk 0:03:00.4]} 5. Ng5 {[%clk 0:02:57.5]}
5... Qe7 {[%clk 0:03:00.5]} 6. Qc2 {[%clk 0:02:51.6]} 6... Bf5 {[%clk
0:03:00.1]} 7. f3 {[%clk 0:02:46]} 7... Nc6 {[%clk 0:03:00]} 8. e3 {[%clk
0:02:18.9]} 8... Nxd4 {[%clk 0:02:50.3]} 9. Qd1 {[%clk 0:01:40.9]} 9... Nc6
{[%clk 0:02:45.9]} 10. h4 {[%clk 0:01:24]} 10... h6 {[%clk 0:02:17.3]} 11. fxe4
{[%clk 0:01:08.2]} 11... Bg4 {[%clk 0:01:59]} 12. Nf3 {[%clk 0:01:07.1]} 12...
Nxe4 {[%clk 0:01:56.8]} 13. Nd5 {[%clk 0:01:07.4]} 13... Qd7 {[%clk 0:01:54.7]}
14. Qa4 {[%clk 0:00:36.1]} 14... Ng3 {[%clk 0:01:42.2]} 15. Rg1 {[%clk
0:00:36.2]} 15... Be7 {[%clk 0:01:39.6]} 16. Bd3 {[%clk 0:00:28.3]} 16... O-O
{[%clk 0:01:21.9]} 17. Bd2 {[%clk 0:00:24.6]} 17... Bd8 {[%clk 0:01:03.5]} 18.
Qc2 {[%clk 0:00:23.9]} 18... Ne5 {[%clk 0:00:57.3]} 19. Be2 {[%clk 0:00:18.8]}
19... Nxe2 {[%clk 0:00:52.1]} 20. Kxe2 {[%clk 0:00:19.7]} 20... c6 {[%clk
0:00:48.7]} 21. Nf4 {[%clk 0:00:18.2]} 21... Bxh4 {[%clk 0:00:47.1]} 22. Bc3
{[%clk 0:00:16]} 22... Rfe8 {[%clk 0:00:43.2]} 23. Rad1 {[%clk 0:00:16]} 23...
Bg3 {[%clk 0:00:37.5]} 24. Kf1 {[%clk 0:00:11.9]} 24... Nxc4 {[%clk 0:00:28.8]}
25. Bd4 {[%clk 0:00:08.7]} 25... Nxe3+ {[%clk 0:00:25.1]} 26. Bxe3 {[%clk
0:00:09.2]} 26... Rxe3 {[%clk 0:00:25.8]} 27. Ne2 {[%clk 0:00:08.9]} 27... Bxf3
{[%clk 0:00:21]} 28. gxf3 {[%clk 0:00:09.8]} 28... Rxf3+ {[%clk 0:00:21.3]} 29.
Kg2 {[%clk 0:00:10.1]} 29... Qg4 {[%clk 0:00:21.9]} 30. Rd4 {[%clk 0:00:09.3]}
30... Bf4+ {[%clk 0:00:21.8]} 31. Kh1 {[%clk 0:00:09.7]} 31... Rh3# {[%clk
0:00:14.6]} 0-1

[Event "Early-Titled-Tuesday-Blitz-October-24-2023"]
[Site "Chess.com"]
[Date "2023.10.24"]
[Round "5"]
[White "Drags95"]
[Black "Ginzburg_Yakov"]
[Result "1-0"]
[WhiteElo "2825"]
[BlackElo "2608"]
[TimeControl "180+1"]
[EndTime "8:54:39 PDT"]
[Termination "Drags95 won by resignation"]

1. d4 {[%clk 0:03:00.9]} 1... d5 {[%clk 0:02:59]} 2. c4 {[%clk 0:03:01.4]} 2...
c6 {[%clk 0:02:59.4]} 3. Nc3 {[%clk 0:03:00]} 3... Nf6 {[%clk 0:02:59.5]} 4. Nf3
{[%clk 0:02:57.7]} 4... dxc4 {[%clk 0:02:59.7]} 5. a4 {[%clk 0:02:51.4]} 5...
Bf5 {[%clk 0:02:59.7]} 6. e3 {[%clk 0:02:46.4]} 6... e6 {[%clk 0:02:59.9]} 7.
Bxc4 {[%clk 0:02:46.6]} 7... Bb4 {[%clk 0:02:59.3]} 8. O-O {[%clk 0:02:47]} 8...
O-O {[%clk 0:02:57.9]} 9. Qe2 {[%clk 0:02:47.5]} 9... Bg6 {[%clk 0:02:57.4]} 10.
Ne5 {[%clk 0:02:45.3]} 10... Nbd7 {[%clk 0:02:57.5]} 11. Nxg6 {[%clk 0:02:45]}
11... hxg6 {[%clk 0:02:57.8]} 12. Rd1 {[%clk 0:02:40]} 12... Qe7 {[%clk
0:02:57.4]} 13. e4 {[%clk 0:02:23.6]} 13... e5 {[%clk 0:02:56.8]} 14. d5 {[%clk
0:02:23.7]} 14... Nb6 {[%clk 0:02:56.7]} 15. Bb3 {[%clk 0:02:11.1]} 15... Rfd8
{[%clk 0:02:38.5]} 16. a5 {[%clk 0:02:08.5]} 16... Nbd7 {[%clk 0:02:32.1]} 17.
a6 {[%clk 0:02:08.9]} 17... Nc5 {[%clk 0:02:24]} 18. axb7 {[%clk 0:02:07.5]}
18... Qxb7 {[%clk 0:02:19]} 19. dxc6 {[%clk 0:01:43.3]} 19... Qxc6 {[%clk
0:02:18.5]} 20. Bd5 {[%clk 0:01:42.1]} 20... Nxd5 {[%clk 0:02:00.5]} 21. Nxd5
{[%clk 0:01:43]} 21... Qb7 {[%clk 0:01:46.1]} 22. Bg5 {[%clk 0:01:36.2]} 22...
Rd7 {[%clk 0:01:22.5]} 23. Qc4 {[%clk 0:01:25.2]} 23... a5 {[%clk 0:01:20.2]}
24. g3 {[%clk 0:00:57.4]} 24... Rc8 {[%clk 0:01:16.6]} 25. Rac1 {[%clk 0:00:55]}
25... Kh7 {[%clk 0:01:03.9]} 26. Be3 {[%clk 0:00:52.3]} 26... Qc6 {[%clk
0:00:23.9]} 27. Nxb4 {[%clk 0:00:49.7]} 27... Rxd1+ {[%clk 0:00:19.7]} 28. Rxd1
{[%clk 0:00:50.3]} 28... axb4 {[%clk 0:00:19.5]} 29. Rc1 {[%clk 0:00:50.9]}
29... Qd7 {[%clk 0:00:12.3]} 30. Bxc5 {[%clk 0:00:50.5]} 30... Qd2 {[%clk
0:00:12.3]} 31. Kg2 {[%clk 0:00:41.3]} 31... b3 {[%clk 0:00:10.5]} 32. Be3
{[%clk 0:00:30.8]} 32... Qd7 {[%clk 0:00:06.9]} 33. Qxc8 {[%clk 0:00:29.8]} 1-0

[Event "Early-Titled-Tuesday-Blitz-October-24-2023"]
[Site "Chess.com"]
[Date "2023.10.24"]
[Round "5"]
[White "Chessmissile07"]
[Black "knightinshiningarmour16"]
[Result "0-1"]
[WhiteElo "2883"]
[BlackElo "2183"]
[TimeControl "180+1"]
[EndTime "8:54:41 PDT"]
[Termination "knightinshiningarmour16 won by resignation"]

1. e4 {[%clk 0:03:00.9]} 1... c6 {[%clk 0:02:59.6]} 2. Nf3 {[%clk 0:03:00.4]}
2... d5 {[%clk 0:02:59.8]} 3. Nc3 {[%clk 0:03:01.1]} 3... a6 {[%clk 0:02:59.6]}
4. d4 {[%clk 0:02:56.1]} 4... Bg4 {[%clk 0:02:59.1]} 5. Be2 {[%clk 0:02:56]}
5... e6 {[%clk 0:02:58.1]} 6. O-O {[%clk 0:02:55.3]} 6... dxe4 {[%clk
0:02:55.3]} 7. Nxe4 {[%clk 0:02:56.2]} 7... Nf6 {[%clk 0:02:54.9]} 8. Nxf6+
{[%clk 0:02:55]} 8... Qxf6 {[%clk 0:02:54.2]} 9. Ne5 {[%clk 0:02:55.2]} 9...
Bxe2 {[%clk 0:02:52]} 10. Qxe2 {[%clk 0:02:56.1]} 10... Bd6 {[%clk 0:02:47.9]}
11. Bd2 {[%clk 0:02:49.8]} 11... O-O {[%clk 0:02:40.9]} 12. Rad1 {[%clk
0:02:49.8]} 12... Bxe5 {[%clk 0:02:35.3]} 13. dxe5 {[%clk 0:02:50.7]} 13... Qe7
{[%clk 0:02:34.8]} 14. Be3 {[%clk 0:02:42.9]} 14... Nd7 {[%clk 0:02:31.1]} 15.
f4 {[%clk 0:02:43.5]} 15... Rfd8 {[%clk 0:02:29.2]} 16. Qc4 {[%clk 0:02:41.6]}
16... h6 {[%clk 0:02:22.8]} 17. Rd3 {[%clk 0:02:40.5]} 17... Nf8 {[%clk
0:01:43.1]} 18. Rfd1 {[%clk 0:02:40.4]} 18... Rd5 {[%clk 0:01:40.8]} 19. Qe4
{[%clk 0:02:35.6]} 19... Rad8 {[%clk 0:01:37.6]} 20. c4 {[%clk 0:02:36.1]} 20...
Rxd3 {[%clk 0:01:36.2]} 21. Rxd3 {[%clk 0:02:37]} 21... Rxd3 {[%clk 0:01:35.6]}
22. Qxd3 {[%clk 0:02:37.9]} 22... Qd7 {[%clk 0:01:35]} 23. Qc2 {[%clk
0:02:07.8]} 23... Ng6 {[%clk 0:01:29]} 24. g3 {[%clk 0:02:03.5]} 24... Ne7
{[%clk 0:01:28.2]} 25. Kf2 {[%clk 0:01:57.8]} 25... Nf5 {[%clk 0:01:27.8]} 26.
Bc5 {[%clk 0:01:58.3]} 26... h5 {[%clk 0:01:19.4]} 27. a4 {[%clk 0:01:55.7]}
27... b5 {[%clk 0:01:11.5]} 28. cxb5 {[%clk 0:01:52.6]} 28... cxb5 {[%clk
0:01:07.3]} 29. a5 {[%clk 0:01:52.7]} 29... Qc6 {[%clk 0:00:55.8]} 30. Qc1
{[%clk 0:01:34.2]} 30... Qe4 {[%clk 0:00:25.6]} 31. b4 {[%clk 0:01:31.2]} 31...
Nh6 {[%clk 0:00:18.8]} 32. h3 {[%clk 0:01:28.3]} 32... Nf5 {[%clk 0:00:17.3]}
33. Bd6 {[%clk 0:00:55.3]} 33... h4 {[%clk 0:00:15.5]} 34. g4 {[%clk 0:00:55.1]}
34... Ng3 {[%clk 0:00:15.3]} 35. Qd2 {[%clk 0:00:43.9]} 35... Qh1 {[%clk
0:00:13]} 36. Ke3 {[%clk 0:00:44.2]} 36... Nf1+ {[%clk 0:00:11.9]} 37. Ke2
{[%clk 0:00:43.8]} 37... Nxd2 {[%clk 0:00:12.8]} 38. Kxd2 {[%clk 0:00:44.7]}
38... Qxh3 {[%clk 0:00:13.3]} 0-1

[Event "Early-Titled-Tuesday-Blitz-October-24-2023"]
[Site "Chess.com"]
[Date "2023.10.24"]
[Round "5"]
[White "c63_amg"]
[Black "ellatambien"]
[Result "1-0"]
[WhiteElo "2818"]
[BlackElo "2613"]
[TimeControl "180+1"]
[EndTime "8:54:42 PDT"]
[Termination "c63_amg won by resignation"]

1. e4 {[%clk 0:02:53]} 1... e5 {[%clk 0:02:58.8]} 2. Nf3 {[%clk 0:02:53.5]} 2...
Nc6 {[%clk 0:02:56.1]} 3. d4 {[%clk 0:02:54.4]} 3... exd4 {[%clk 0:02:55.3]} 4.
Bc4 {[%clk 0:02:55.3]} 4... Nf6 {[%clk 0:02:54.9]} 5. e5 {[%clk 0:02:55.3]} 5...
d5 {[%clk 0:02:54.6]} 6. Bb5 {[%clk 0:02:55.8]} 6... Ne4 {[%clk 0:02:55]} 7.
Nxd4 {[%clk 0:02:56.1]} 7... Bc5 {[%clk 0:02:55.6]} 8. Be3 {[%clk 0:02:49.7]}
8... O-O {[%clk 0:02:51.6]} 9. Nxc6 {[%clk 0:02:49.3]} 9... bxc6 {[%clk
0:02:50]} 10. Bxc5 {[%clk 0:02:50.2]} 10... Nxc5 {[%clk 0:02:49.7]} 11. Bxc6
{[%clk 0:02:51.1]} 11... Rb8 {[%clk 0:02:50.1]} 12. Qxd5 {[%clk 0:02:51.2]}
12... Qe7 {[%clk 0:02:50.7]} 13. O-O {[%clk 0:02:51.4]} 13... Rxb2 {[%clk
0:02:51.2]} 14. Nc3 {[%clk 0:02:51.9]} 14... Rd8 {[%clk 0:02:48.6]} 15. Qf3
{[%clk 0:02:49.6]} 15... Ne6 {[%clk 0:02:48.7]} 16. Be4 {[%clk 0:02:40]} 16...
Ng5 {[%clk 0:02:16.1]} 17. Qe3 {[%clk 0:02:35]} 17... Nxe4 {[%clk 0:02:16.3]}
18. Qxe4 {[%clk 0:02:21.6]} 18... Bb7 {[%clk 0:02:16]} 19. Qe3 {[%clk
0:02:21.9]} 19... Rxc2 {[%clk 0:02:15.7]} 20. Rac1 {[%clk 0:02:18]} 20... Rxc1
{[%clk 0:02:14.6]} 21. Rxc1 {[%clk 0:02:18.9]} 21... a6 {[%clk 0:02:04.8]} 22.
h3 {[%clk 0:01:59.9]} 22... h6 {[%clk 0:02:03.5]} 23. Na4 {[%clk 0:01:54.2]}
23... Rd5 {[%clk 0:01:45.9]} 24. Nc5 {[%clk 0:01:46.9]} 24... Bc8 {[%clk
0:01:43.4]} 25. f4 {[%clk 0:01:39.7]} 25... a5 {[%clk 0:01:36.8]} 26. Kh2 {[%clk
0:01:35.2]} 26... h5 {[%clk 0:01:31.2]} 27. Ne4 {[%clk 0:01:21.7]} 27... Bf5
{[%clk 0:01:26.2]} 28. Ng5 {[%clk 0:00:52.4]} 28... g6 {[%clk 0:01:04.6]} 29.
Qa7 {[%clk 0:00:41.7]} 29... Rd7 {[%clk 0:01:02]} 30. Qxa5 {[%clk 0:00:41.3]}
30... f6 {[%clk 0:00:58.2]} 31. exf6 {[%clk 0:00:37.5]} 31... Qxf6 {[%clk
0:00:55.8]} 32. Rxc7 {[%clk 0:00:33.7]} 32... Qd4 {[%clk 0:00:52.7]} 33. Rc8+
{[%clk 0:00:20.4]} 33... Kg7 {[%clk 0:00:52.6]} 34. Qe5+ {[%clk 0:00:20.6]}
34... Qxe5 {[%clk 0:00:52.9]} 35. fxe5 {[%clk 0:00:21.5]} 35... Rd2 {[%clk
0:00:44.7]} 36. Rc7+ {[%clk 0:00:21.6]} 36... Kf8 {[%clk 0:00:43.5]} 37. e6
{[%clk 0:00:19.5]} 37... Rxa2 {[%clk 0:00:37.4]} 38. Nh7+ {[%clk 0:00:13]} 38...
Kg8 {[%clk 0:00:31.7]} 39. Nf6+ {[%clk 0:00:12.9]} 39... Kf8 {[%clk 0:00:27.7]}
40. e7+ {[%clk 0:00:13.2]} 40... Kf7 {[%clk 0:00:28.3]} 41. e8=Q+ {[%clk
0:00:13.9]} 41... Kxf6 {[%clk 0:00:29.2]} 42. Qf8+ {[%clk 0:00:13.8]} 1-0

[Event "Early-Titled-Tuesday-Blitz-October-24-2023"]
[Site "Chess.com"]
[Date "2023.10.24"]
[Round "5"]
[White "Szparu"]
[Black "bardiya_Daneshvar"]
[Result "0-1"]
[WhiteElo "2699"]
[BlackElo "2968"]
[TimeControl "180+1"]
[EndTime "8:54:47 PDT"]
[Termination "bardiya_Daneshvar won on time"]

1. e4 {[%clk 0:03:00.9]} 1... e6 {[%clk 0:02:58.1]} 2. d4 {[%clk 0:03:00.3]}
2... d5 {[%clk 0:02:58.8]} 3. Nd2 {[%clk 0:02:59.9]} 3... a6 {[%clk 0:02:58.5]}
4. Bd3 {[%clk 0:02:55.3]} 4... c5 {[%clk 0:02:54]} 5. dxc5 {[%clk 0:02:40.8]}
5... Bxc5 {[%clk 0:02:54.9]} 6. Ngf3 {[%clk 0:02:40.3]} 6... Nc6 {[%clk
0:02:54]} 7. O-O {[%clk 0:02:39.6]} 7... Nge7 {[%clk 0:02:52.5]} 8. c3 {[%clk
0:02:34.3]} 8... O-O {[%clk 0:02:51.5]} 9. exd5 {[%clk 0:02:29.3]} 9... exd5
{[%clk 0:02:50.5]} 10. Qc2 {[%clk 0:02:29.8]} 10... Ng6 {[%clk 0:02:50.4]} 11.
Nb3 {[%clk 0:02:28.2]} 11... Bd6 {[%clk 0:02:50.3]} 12. Bg5 {[%clk 0:02:25.6]}
12... Qc7 {[%clk 0:02:47]} 13. h3 {[%clk 0:02:23.4]} 13... h6 {[%clk 0:02:33.1]}
14. Be3 {[%clk 0:02:18.5]} 14... Nf4 {[%clk 0:02:30.2]} 15. Bxf4 {[%clk
0:02:14.2]} 15... Bxf4 {[%clk 0:02:31.1]} 16. Rad1 {[%clk 0:02:07.7]} 16... Rd8
{[%clk 0:02:14.6]} 17. Rfe1 {[%clk 0:02:04]} 17... Ne5 {[%clk 0:02:05.9]} 18.
Nxe5 {[%clk 0:01:46.1]} 18... Bxe5 {[%clk 0:02:04.9]} 19. Bh7+ {[%clk 0:01:47]}
19... Kh8 {[%clk 0:02:03.3]} 20. Bf5 {[%clk 0:01:47.9]} 20... Bf6 {[%clk
0:02:03.2]} 21. Bxc8 {[%clk 0:01:39.3]} 21... Raxc8 {[%clk 0:02:04.1]} 22. Qf5
{[%clk 0:01:37.5]} 22... Qc4 {[%clk 0:02:00.4]} 23. Re3 {[%clk 0:01:05.6]} 23...
Qa4 {[%clk 0:01:58.2]} 24. Qb1 {[%clk 0:00:48.6]} 24... Kg8 {[%clk 0:01:47.3]}
25. Red3 {[%clk 0:00:48.5]} 25... Qb5 {[%clk 0:01:42.1]} 26. Nd4 {[%clk
0:00:46.8]} 26... Qb6 {[%clk 0:01:37.6]} 27. Nf5 {[%clk 0:00:42.9]} 27... Qe6
{[%clk 0:01:36.5]} 28. Ne3 {[%clk 0:00:42]} 28... Rc5 {[%clk 0:01:35.3]} 29. Re1
{[%clk 0:00:27.7]} 29... Qb6 {[%clk 0:01:18.2]} 30. Ng4 {[%clk 0:00:20.2]} 30...
Bg5 {[%clk 0:01:14.6]} 31. Red1 {[%clk 0:00:20.4]} 31... h5 {[%clk 0:01:11.5]}
32. Ne5 {[%clk 0:00:19.4]} 32... Bf6 {[%clk 0:01:10.3]} 33. Nf3 {[%clk
0:00:19.6]} 33... Rb5 {[%clk 0:01:09.4]} 34. b3 {[%clk 0:00:18.4]} 34... g6
{[%clk 0:01:07.2]} 35. Nd4 {[%clk 0:00:17.4]} 35... Rc5 {[%clk 0:01:07.2]} 36.
Ne2 {[%clk 0:00:12.6]} 36... Qc7 {[%clk 0:01:04.5]} 37. Qc2 {[%clk 0:00:07.8]}
37... b5 {[%clk 0:01:02.1]} 38. Qd2 {[%clk 0:00:07.8]} 38... Re8 {[%clk
0:01:00.5]} 39. b4 {[%clk 0:00:07.2]} 39... Rc6 {[%clk 0:00:52.3]} 40. Rxd5
{[%clk 0:00:07.7]} 40... Qe7 {[%clk 0:00:51.5]} 41. Nf4 {[%clk 0:00:07.5]} 41...
Bxc3 {[%clk 0:00:51.3]} 42. Qd3 {[%clk 0:00:05.7]} 42... Qe4 {[%clk 0:00:49.9]}
43. Qg3 {[%clk 0:00:04.9]} 43... Be5 {[%clk 0:00:47]} 0-1